bitfinex/quotes_SOLUSD_20250929
["timestamp","ask_amount","ask_price","bid_price","bid_amount"]
[1759173916240,0.1,212.16,212.15,5.676946]
[1759173919281,0.1,212.16,212.15,36.87556485]
[1759173920260,0.1,212.16,212.15,35.64155987]
[1759173920777,0.1,212.2,212.16,13.59559401]
[1759173921064,0.1,212.2,212.18,2.1916611]
[1759173921356,1e-08,212.2,212.19,13.59559401]
[1759173921561,1e-08,212.2,212.19,14.26559401]
[1759173923467,1e-08,212.2,212.19,18.97835144]
[1759173927063,1e-08,212.2,212.19,19.12051301]
[1759173927262,0.1,212.29,212.2,0.14216157]
[1759173927460,0.1,212.29,212.22,15.78725511]
[1759173927952,0.1,212.29,212.23,14.8413314]
[1759173928152,0.1,212.29,212.24,16.49076516]
[1759173928363,0.1,212.29,212.24,17.16076516]
[1759173928561,0.1,212.29,212.25,0.67]
[1759173928859,0.76,212.29,212.25,0.67]
[1759173929456,0.76,212.29,212.24,16.49076516]
[1759173929666,0.76,212.29,212.24,17.16076516]
[1759173929883,0.1,212.29,212.25,0.67]
[1759173930260,0.1,212.29,212.27,4.71098129]
[1759173930453,0.66,212.28,212.23,13.90618059]
[1759173930655,0.66,212.27,212.22,4.71209122]
[1759173930865,0.66,212.27,212.22,17.16231928]
[1759173931958,0.66,212.27,212.23,0.67]
[1759173932175,0.1,212.29,212.23,0.67]
[1759173932375,0.76,212.29,212.24,4.71164719]
[1759173932687,0.66,212.28,212.24,4.71164719]
[1759173933687,0.1,212.29,212.24,16.49076516]
[1759173933896,0.1,212.29,212.25,0.67]
[1759173934300,0.1,212.29,212.26,16.48921134]
[1759173934594,0.1,212.29,212.27,0.67]
[1759173934962,0.1,212.29,212.28,0.67]
[1759173935487,0.1,212.29,212.26,49.86921134]
[1759173935686,0.1,212.29,212.28,0.67]
[1759173935985,0.1,212.29,212.27,1.88924312]
[1759173936160,0.1,212.29,212.27,2.55924312]
[1759173936362,0.1,212.29,212.28,4.71075937]
[1759173936571,0.1,212.29,212.24,4.71164719]
[1759173936572,0.76,212.29,212.24,4.71164719]
[1759173936788,0.66,212.28,212.24,1.88960011]
[1759173936969,0.66,212.27,212.24,1.88960011]
[1759173937609,0.66,212.27,212.23,19.14972192]
[1759173939193,26.1,212.29,212.23,19.81972192]
[1759173939367,26.1,212.29,212.23,30.92939491]
[1759173939575,26.1,212.29,212.24,0.67]
[1759173939774,0.1,212.29,212.24,0.67]
[1759173939970,0.1,212.29,212.23,30.92939491]
[1759173940171,0.1,212.29,212.25,0.67]
[1759173940371,0.1,212.29,212.26,4.71120324]
[1759173940578,0.1,212.29,212.26,5.38120324]
[1759173941973,0.1,212.29,212.26,16.48921134]
[1759173942172,0.1,212.29,212.26,17.15921134]
[1759173943597,0.1,212.29,212.26,16.48921134]
[1759173943985,0.1,212.29,212.26,12.4480081]
[1759173944986,0.1,212.29,212.27,0.67]
[1759173945188,0.1,212.29,212.26,11.7780081]
[1759173945189,0.1,212.29,212.28,0.67]
[1759173945987,0.1,212.29,212.28,5.38075937]
[1759173947091,0.1,212.29,212.28,7.57242047]
[1759173948001,0.1,212.29,212.28,21.16801448]
[1759173948701,0.1,212.31,212.29,13.59559401]
[1759173949008,0.1,212.31,212.3,15.78725511]
[1759173949202,0.1,212.31,212.3,16.45725511]
[1759173949999,0.1,212.31,212.3,21.1675707]
[1759173953110,0.1,212.31,212.3,54.5275707]
[1759173953315,0.1,212.31,212.3,54.5475707]
[1759173958397,0.1,212.31,212.3,52.3559096]
[1759173958617,0.1,212.31,212.3,54.5475707]
[1759173959592,0.1,212.31,212.3,51.6659096]
[1759173959797,0.1,212.31,212.3,54.5475707]
[1759173960505,0.1,212.31,212.3,54.5275707]
[1759173964007,1e-08,212.31,212.3,80.66973227]
[1759173964999,1e-08,212.31,212.3,94.83504143]
[1759173965407,1e-08,212.31,212.3,80.66973227]
[1759173965809,1e-08,212.31,212.3,91.08973227]
[1759173966002,0.1,212.38,212.33,13.59559401]
[1759173966317,0.1,212.38,212.36,2.1916611]
[1759173966521,0.1,212.38,212.31,0.69]
[1759173966522,34.02,212.37,212.25,6.9030863]
[1759173966719,26.0,212.34,212.25,6.9030863]
[1759173966900,26.0,212.34,212.25,22.8430863]
[1759173967099,0.68,212.33,212.25,22.8430863]
[1759173967300,0.68,212.32,212.25,22.8430863]
[1759173967501,0.68,212.31,212.25,34.62164931]
[1759173967702,0.68,212.3,212.25,34.62164931]
[1759173967904,0.68,212.29,212.26,13.59559401]
[1759173968111,0.68,212.31,212.28,2.1916611]
[1759173968399,59.34,212.37,212.28,2.1916611]
[1759173968601,0.68,212.36,212.28,2.1916611]
[1759173968796,0.68,212.35,212.27,49.82843453]
[1759173969028,0.68,212.34,212.28,2.1916611]
[1759173969219,0.68,212.33,212.28,2.1916611]
[1759173969422,0.68,212.32,212.28,2.1916611]
[1759173969601,0.68,212.31,212.28,2.1916611]
[1759173970310,0.68,212.31,212.29,4.71053747]
[1759173971441,0.68,212.31,212.29,4.99383747]
[1759173972023,0.68,212.33,212.29,16.77018115]
[1759173972221,0.68,212.32,212.29,16.77018115]
[1759173972441,33.34,212.37,212.29,16.77018115]
[1759173972622,0.68,212.34,212.29,16.77018115]
[1759173972817,0.68,212.33,212.29,17.46018115]
[1759173973045,0.68,212.36,212.3,0.69]
[1759173973329,0.1,212.38,212.34,13.59559401]
[1759173973646,0.1,212.38,212.36,13.59559401]
[1759173973948,1e-08,212.38,212.37,46.93559401]
[1759173974152,1e-08,212.38,212.37,47.61559401]
[1759173974445,1e-08,212.38,212.37,14.27559401]
[1759173974918,1e-08,212.38,212.37,47.61559401]
[1759173975114,1e-08,212.38,212.37,14.27559401]
[1759173975436,1e-08,212.38,212.36,13.59559401]
[1759173975638,1e-08,212.38,212.37,38.048763]
[1759173976545,1e-08,212.38,212.37,52.32435701]
[1759173976723,1e-08,212.38,212.37,52.46651858]
[1759173978030,1e-08,212.38,212.37,51.76651858]
[1759173978221,1e-08,212.38,212.37,18.30435701]
[1759173978422,1e-08,212.38,212.37,52.30435701]
[1759173979336,1e-08,212.38,212.37,52.44651858]
[1759173979574,1e-08,212.38,212.37,19.12651858]
[1759173980071,1e-08,212.38,212.37,52.44651858]
[1759173981336,1e-08,212.38,212.37,19.12651858]
[1759173981532,1e-08,212.38,212.37,52.44651858]
[1759173982252,1e-08,212.38,212.37,55.86468722]
[1759173986539,1e-08,212.38,212.37,22.54468722]
[1759173986733,1e-08,212.38,212.37,55.86468722]
[1759173987941,1e-08,212.38,212.37,55.18468722]
[1759173988337,1e-08,212.38,212.37,55.86468722]
[1759173989046,1e-08,212.38,212.37,22.54468722]
[1759173989238,1e-08,212.38,212.37,55.86468722]
[1759173989442,0.69000001,212.38,212.37,4.708763]
[1759173989642,0.69000001,212.38,212.37,38.028763]
[1759173989867,0.69000001,212.38,212.37,4.708763]
[1759173992466,0.69000001,212.38,212.33,4.70965007]
[1759173992653,0.69,212.37,212.3,4.71031559]
[1759173992856,1e-08,212.38,212.3,4.71031559]
[1759173992857,0.69,212.36,212.3,49.80610456]
[1759173993051,1e-08,212.38,212.3,49.80610456]
[1759173993052,0.69,212.37,212.31,0.68]
[1759173993249,1e-08,212.38,212.32,33.32]
[1759173993446,1e-08,212.38,212.37,0.2833]
[1759173993860,0.69000001,212.38,212.37,0.2833]
[1759173994348,0.69000001,212.38,212.37,4.992063]
[1759173994349,1e-08,212.38,212.37,4.992063]
[1759173996950,0.69000001,212.38,212.37,4.992063]
[1759173997699,0.69000001,212.38,212.37,0.2833]
[1759173998863,26.69000001,212.38,212.37,0.2833]
[1759173999560,0.69000001,212.38,212.37,0.2833]
[1759174000475,26.69000001,212.38,212.37,0.2833]
[1759174003856,31.3985413,212.38,212.37,0.2833]
[1759174004073,34.81670994,212.38,212.37,0.2833]
[1759174005355,30.10816865,212.38,212.37,0.2833]
[1759174006278,34.81670994,212.38,212.37,0.2833]
[1759174007374,34.95887151,212.38,212.37,0.2833]
[1759174007868,34.81670994,212.38,212.37,0.2833]
[1759174009782,68.13670994,212.38,212.37,0.2833]
[1759174010176,68.27887151,212.38,212.37,0.2833]
[1759174010385,85.04166242,212.38,212.37,0.2833]
[1759174010578,85.04166242,212.38,212.24,4.71161246]
[1759174010579,26.0,212.34,212.24,4.71161246]
[1759174010787,29.41816864,212.3,212.22,0.68]
[1759174011083,34.01,212.29,212.22,0.68]
[1759174011788,4.71075937,212.28,212.22,0.68]
[1759174012084,5.40075937,212.28,212.22,0.68]
[1759174012977,29.41816864,212.3,212.22,17.17225535]
[1759174012978,26.0,212.3,212.22,17.17225535]
[1759174013187,8.27001955,212.33,212.22,17.17225535]
[1759174013188,33.32,212.29,212.23,0.65]
[1759174013369,33.32,212.3,212.23,0.65]
[1759174013568,0.69,212.33,212.23,0.65]
[1759174013882,3.41816864,212.35,212.23,0.65]
[1759174013883,33.32,212.32,212.23,0.65]
[1759174015170,33.32,212.32,212.24,16.49076516]
[1759174015383,33.32,212.32,212.25,0.65]
[1759174016574,38.71992917,212.32,212.25,1.0685]
[1759174016980,34.01,212.32,212.25,1.0685]
[1759174017571,34.01,212.32,212.26,4.71120324]
[1759174018184,38.71989317,212.32,212.26,4.71120324]
[1759174018366,34.01,212.32,212.26,4.71120324]
[1759174018897,165.61,212.32,212.26,4.71120324]
[1759174019083,33.32,212.31,212.26,4.71120324]
[1759174019283,0.69,212.3,212.26,4.71120324]
[1759174019975,0.69,212.3,212.26,5.36120324]
[1759174020597,33.32,212.31,212.27,0.65]
[1759174020801,33.32,212.31,212.28,0.65]
[1759174021174,33.32,212.31,212.26,16.48921134]
[1759174021175,0.69,212.3,212.26,16.48921134]
[1759174021386,0.69,212.3,212.26,4.71120324]
[1759174023584,0.69,212.29,212.25,0.4185]
[1759174023903,33.32,212.28,212.25,0.4185]
[1759174024106,0.69,212.27,212.25,0.4185]
[1759174024304,26.0,212.29,212.25,0.4185]
[1759174024511,26.0,212.29,212.26,0.65]
[1759174024678,26.0,212.29,212.27,0.65]
[1759174025007,33.32,212.31,212.27,0.65]
[1759174025887,33.32,212.31,212.28,5.36075937]
[1759174027311,0.69,212.3,212.25,0.4185]
[1759174027504,0.69,212.29,212.25,5.12986752]
[1759174028082,38.72012912,212.31,212.25,5.77986752]
[1759174028683,34.01,212.31,212.25,5.77986752]
[1759174028884,135.01816864,212.32,212.26,0.65]
[1759174029110,33.32,212.31,212.26,0.65]
[1759174029293,34.01,212.31,212.25,16.90843053]
[1759174029803,33.32,212.31,212.26,0.65]
[1759174030112,33.32,212.31,212.27,0.65]
[1759174030805,33.32,212.31,212.28,4.71075937]
[1759174031183,33.32,212.31,212.28,5.36075937]
[1759174031807,131.6,212.32,212.29,0.65]
[1759174032318,0.69000001,212.38,212.3,13.59559401]
[1759174032489,34.01000001,212.38,212.31,0.65]
[1759174033022,34.01000001,212.38,212.32,16.48455161]
[1759174033222,34.01000001,212.38,212.32,17.13455161]
[1759174033726,33.32000001,212.38,212.33,0.65]
[1759174034011,1e-08,212.38,212.33,0.65]
[1759174034540,1e-08,212.38,212.34,0.72]
[1759174035013,1e-08,212.38,212.36,4.70898474]
[1759174035912,1e-08,212.38,212.36,5.42898474]
[1759174036112,1e-08,212.38,212.37,0.72]
[1759174036308,1e-08,212.38,212.36,4.70898474]
[1759174036697,1e-08,212.38,212.36,5.42898474]
[1759174038708,1e-08,212.38,212.36,4.70898474]
[1759174039114,1e-08,212.38,212.36,5.12748474]
[1759174040511,0.71,212.37,212.36,0.4185]
[1759174041014,1e-08,212.38,212.36,0.4185]
[1759174041204,1e-08,212.38,212.36,5.12748068]
[1759174041914,1e-08,212.38,212.36,5.81748068]
[1759174042098,1e-08,212.38,212.37,0.69]
[1759174042804,1e-08,212.38,212.36,5.12748068]
[1759174043015,1e-08,212.38,212.36,5.81748068]
[1759174043212,1e-08,212.38,212.37,0.69]
[1759174043921,1e-08,212.38,212.37,4.708763]
[1759174048720,1e-08,212.38,212.37,18.99435701]
[1759174050027,1e-08,212.38,212.37,21.18330569]
[1759174050701,1e-08,212.38,212.37,5.398763]
[1759174054804,1e-08,212.38,212.37,52.29435701]
[1759174055817,1e-08,212.38,212.37,18.99435701]
[1759174056007,1e-08,212.38,212.37,52.29435701]
[1759174059518,1e-08,212.38,212.37,52.71285701]
[1759174060915,1e-08,212.38,212.37,52.85501858]
[1759174062110,1e-08,212.38,212.37,19.55501858]
[1759174062423,1e-08,212.38,212.37,66.99497893]
[1759174063720,1e-08,212.38,212.37,33.71497893]
[1759174063911,1e-08,212.38,212.37,66.99497893]
[1759174064899,1e-08,212.38,212.37,33.71497893]
[1759174065100,1e-08,212.38,212.37,66.99497893]
[1759174067012,1e-08,212.38,212.37,33.71497893]
[1759174067325,1e-08,212.38,212.37,66.99497893]
[1759174067528,1e-08,212.38,212.37,52.83501858]
[1759174068022,1e-08,212.38,212.37,18.72285701]
[1759174068224,1e-08,212.38,212.37,32.88281736]
[1759174068423,1e-08,212.38,212.37,66.16281736]
[1759174068728,1e-08,212.38,212.37,52.00285701]
[1759174069227,1e-08,212.38,212.37,5.127263]
[1759174069529,0.67000001,212.38,212.37,38.407263]
[1759174069906,0.67000001,212.38,212.37,5.127263]
[1759174070812,1e-08,212.38,212.37,5.127263]
[1759174071908,1e-08,212.38,212.37,5.807263]
[1759174072140,1e-08,212.38,212.37,21.59180569]
[1759174073511,1e-08,212.38,212.37,20.91180569]
[1759174073915,1e-08,212.38,212.37,21.59180569]
[1759174074732,1e-08,212.38,212.37,54.87180569]
[1759174077002,1e-08,212.38,212.37,21.59180569]
[1759174077207,1e-08,212.38,212.37,54.87180569]
[1759174079333,1e-08,212.38,212.37,21.59180569]
[1759174079628,1e-08,212.38,212.37,54.87180569]
[1759174079806,1e-08,212.38,212.37,55.01396726]
[1759174088019,1e-08,212.38,212.37,55.01396726]
[1759174088318,1e-08,212.38,212.37,58.18975951]
[1759174088721,1e-08,212.38,212.37,55.01396726]
[1759174089744,1e-08,212.38,212.37,19.54501858]
[1759174089929,1e-08,212.38,212.37,55.01396726]
[1759174096737,1e-08,212.38,212.37,21.73396726]
[1759174096922,1e-08,212.38,212.37,54.99396726]
[1759174097545,1e-08,212.38,212.37,18.72285701]
[1759174097546,0.69000001,212.38,212.37,18.72285701]
[1759174097755,0.69000001,212.38,212.37,5.127263]
[1759174098440,1e-08,212.38,212.37,38.387263]
[1759174098626,0.69000001,212.38,212.37,38.387263]
[1759174098823,0.69000001,212.38,212.37,5.127263]
[1759174100142,1e-08,212.38,212.37,5.127263]
[1759174100339,1e-08,212.38,212.37,7.31621168]
[1759174100828,0.69000001,212.38,212.37,7.31621168]
[1759174101326,1e-08,212.38,212.37,7.31621168]
[1759174102230,1e-08,212.38,212.37,8.54585364]
[1759174102646,0.66000001,212.38,212.37,5.127263]
[1759174104045,1e-08,212.38,212.37,5.127263]
[1759174104246,0.66000001,212.38,212.37,5.127263]
[1759174105338,1e-08,212.38,212.37,5.127263]
[1759174105946,1e-08,212.38,212.37,38.387263]
[1759174107255,1e-08,212.38,212.37,42.48585364]
[1759174107641,1e-08,212.38,212.37,41.80585364]
[1759174109660,1e-08,212.38,212.37,38.387263]
[1759174113861,0.66000001,212.38,212.37,38.387263]
[1759174114159,0.66000001,212.38,212.37,5.127263]
[1759174114361,0.66000001,212.38,212.37,38.387263]
[1759174115358,1e-08,212.38,212.37,38.387263]
[1759174115563,0.66000001,212.38,212.37,38.387263]
[1759174116347,1e-08,212.38,212.37,38.387263]
[1759174118052,0.66000001,212.38,212.37,5.127263]
[1759174121943,1e-08,212.38,212.37,5.127263]
[1759174124165,1e-08,212.38,212.37,5.807263]
[1759174124350,1e-08,212.38,212.37,33.56415419]
[1759174129973,1e-08,212.38,212.37,66.80415419]
[1759174132476,1e-08,212.38,212.37,66.94631576]
[1759174132984,1e-08,212.38,212.37,66.80415419]
[1759174137282,1e-08,212.38,212.37,66.12415419]
[1759174137470,1e-08,212.38,212.37,66.78415419]
[1759174139179,1e-08,212.38,212.37,19.28856018]
[1759174139379,1e-08,212.38,212.37,38.347263]
[1759174139684,1e-08,212.38,212.37,42.18408014]
[1759174139983,1e-08,212.38,212.37,52.60285701]
[1759174140157,1e-08,212.38,212.37,55.77967415]
[1759174140356,1e-08,212.38,212.37,55.92183572]
[1759174150791,1e-08,212.38,212.37,59.34042636]
[1759174150988,3.17681714,212.46,212.41,39.59559401]
[1759174151197,0.65,212.5,212.47,13.59559401]
[1759174151692,0.65,212.49,212.48,46.81559401]
[1759174151899,0.65,212.49,212.48,18.30191931]
[1759174152073,0.65,212.49,212.48,65.66914036]
[1759174152278,0.65,212.49,212.48,77.43495361]
[1759174152890,0.1,212.51,212.48,77.43495361]
[1759174153092,0.65,212.5,212.48,77.43495361]
[1759174153278,0.65,212.5,212.48,44.21495361]
[1759174153479,0.65,212.5,212.49,33.22]
[1759174153996,0.65,212.5,212.49,37.92610381]
[1759174154202,0.65,212.5,212.48,18.8535263]
[1759174154501,0.69,212.49,212.45,33.2]
[1759174154683,0.69,212.48,212.44,33.2]
[1759174154887,0.69,212.47,212.44,33.2]
[1759174155099,0.69,212.46,212.4,30.63696653]
[1759174155400,0.69,212.45,212.41,33.2]
[1759174155705,0.69,212.44,212.4,37.90809792]
[1759174155997,0.69,212.43,212.4,37.90809792]
[1759174156196,0.69,212.42,212.4,14.1030305]
[1759174156406,0.69,212.41,212.38,4.70838272]
[1759174156582,0.69,212.4,212.38,4.70838272]
[1759174156786,0.69,212.39,212.38,4.70838272]
[1759174158305,0.69,212.39,212.34,13.59559401]
[1759174158482,0.69,212.38,212.33,13.59559401]
[1759174158685,0.69,212.37,212.33,46.79559401]
[1759174158885,26.0,212.41,212.33,46.79559401]
[1759174158886,0.69,212.36,212.33,13.59559401]
[1759174159097,0.69,212.36,212.33,13.81329816]
[1759174159299,0.69,212.35,212.31,14.16464034]
[1759174159505,0.69,212.34,212.31,14.16464034]
[1759174159702,0.69,212.33,212.3,4.71011383]
[1759174160181,0.69,212.32,212.3,4.71011383]
[1759174160386,0.69,212.32,212.3,18.67682211]
[1759174160603,0.69,212.32,212.3,4.71011383]
[1759174161214,0.7,212.32,212.3,4.71011383]
[1759174161706,0.7,212.31,212.3,0.4185]
[1759174162016,26.0,212.35,212.3,0.4185]
[1759174162315,0.7,212.33,212.3,0.4185]
[1759174162500,0.7,212.32,212.3,0.4185]
[1759174163510,0.7,212.32,212.3,5.12881258]
[1759174164514,0.7,212.33,212.3,5.12881258]
[1759174164685,26.0,212.35,212.3,5.12881258]
[1759174164882,0.7,212.34,212.3,5.12881258]
[1759174165109,26.0,212.35,212.3,5.12881258]
[1759174165411,0.7,212.34,212.3,5.12881258]
[1759174165610,0.7,212.33,212.3,5.12881258]
[1759174166388,26.0,212.35,212.3,5.12881258]
[1759174166596,0.7,212.33,212.3,5.12881258]
[1759174167115,26.7,212.35,212.3,5.12881258]
[1759174167416,0.7,212.34,212.3,5.12881258]
[1759174167712,26.0,212.35,212.31,0.71]
[1759174168300,0.7,212.34,212.3,5.12881258]
[1759174171197,0.7,212.33,212.3,5.12881258]
[1759174171393,26.7,212.35,212.3,5.12881258]
[1759174171596,0.7,212.34,212.3,5.83881258]
[1759174176507,26.0,212.35,212.3,5.83881258]
[1759174176698,26.7,212.35,212.3,5.83881258]
[1759174176896,0.7,212.34,212.3,5.12881258]
[1759174177100,0.7,212.33,212.3,5.12881258]
[1759174177314,30.70925037,212.35,212.3,0.4185]
[1759174177522,0.7,212.32,212.3,0.4185]
[1759174178819,0.7,212.34,212.3,0.4185]
[1759174179013,0.7,212.34,212.3,5.12878989]
[1759174180331,0.7,212.34,212.3,5.83878989]
[1759174180643,0.7,212.34,212.3,5.12878989]
[1759174180806,37.77719699,212.35,212.3,5.12878989]
[1759174181008,0.7,212.34,212.3,5.83878989]
[1759174182515,169.37719699,212.35,212.3,5.83878989]
[1759174182516,0.7,212.33,212.3,5.12878989]
[1759174182709,162.30922529,212.35,212.3,5.12878989]
[1759174182710,158.3,212.35,212.3,5.12878989]
[1759174182922,0.7,212.34,212.3,5.83878989]
[1759174186625,157.6,212.35,212.3,5.83878989]
[1759174186929,158.3,212.35,212.31,0.71]
[1759174187420,157.6,212.35,212.3,5.12878989]
[1759174187618,26.0,212.32,212.3,0.4185]
[1759174187815,63.90991441,212.32,212.3,0.4185]
[1759174188006,0.7,212.31,212.3,0.4185]
[1759174188406,64.60991441,212.32,212.3,0.4185]
[1759174188608,0.7,212.31,212.3,0.4185]
[1759174190128,5.41009373,212.31,212.3,0.4185]
[1759174191311,5.5522553,212.31,212.3,0.4185]
[1759174191521,26.0,212.31,212.3,0.4185]
[1759174191722,26.0,212.31,212.3,1.0785]
[1759174191908,59.2,212.31,212.3,0.4185]
[1759174192931,59.89,212.31,212.3,0.4185]
[1759174193137,64.60009373,212.31,212.3,0.4185]
[1759174195119,66.7903644,212.31,212.3,0.4185]
[1759174196730,66.93252597,212.31,212.3,0.4185]
[1759174199326,33.73252597,212.31,212.3,0.4185]
[1759174199527,66.93252597,212.31,212.3,0.4185]
[1759174200121,64.7422553,212.31,212.3,0.4185]
[1759174200322,66.93252597,212.31,212.3,0.4185]
[1759174200533,33.73252597,212.31,212.3,0.4185]
[1759174200729,66.93252597,212.31,212.3,0.4185]
[1759174203448,80.52811998,212.31,212.3,1e-08]
[1759174203626,103.2844919,212.31,212.3,1e-08]
[1759174203825,61.32340922,212.31,212.3,1e-08]
[1759174204042,47.32811998,212.31,212.3,1e-08]
[1759174204244,33.73252597,212.31,212.3,1e-08]
[1759174204430,66.93252597,212.31,212.3,1e-08]
[1759174205144,33.73252597,212.31,212.3,1e-08]
[1759174205323,89.28920266,212.31,212.3,1e-08]
[1759174205649,83.7014777,212.31,212.3,1e-08]
[1759174206250,92.46256038,212.31,212.3,1e-08]
[1759174206428,0.14216157,212.21,212.15,0.2]
[1759174206743,26.0,212.17,212.15,0.86]
[1759174206947,26.0,212.17,212.15,0.2]
[1759174207156,33.2,212.16,212.15,0.2]
[1759174207446,26.0,212.17,212.16,0.66]
[1759174207645,26.0,212.21,212.16,0.66]
[1759174208148,33.2,212.23,212.16,0.66]
[1759174209350,33.2,212.23,212.17,4.71320167]
[1759174209549,33.2,212.23,212.18,0.66]
[1759174209754,37.91202784,212.23,212.18,0.66]
[1759174209925,0.69,212.22,212.18,0.66]
[1759174210127,33.2,212.21,212.16,0.66]
[1759174210746,33.2,212.22,212.16,0.66]
[1759174211545,33.2,212.22,212.17,16.49620586]
[1759174211748,33.2,212.22,212.18,0.66]
[1759174213451,33.89,212.22,212.17,4.71320167]
[1759174213644,33.2,212.22,212.18,0.66]
[1759174213950,33.2,212.22,212.19,0.66]
[1759174214350,33.2,212.22,212.17,0.66]
[1759174215153,33.2,212.21,212.17,0.66]
[1759174215535,33.2,212.23,212.18,4.71297954]
[1759174215940,33.2,212.23,212.19,0.71]
[1759174216261,33.2,212.23,212.2,0.71]
[1759174216561,33.2,212.23,212.21,0.71]
[1759174217665,33.2,212.23,212.21,5.4222453]
[1759174217958,33.2,212.23,212.19,5.42275743]
[1759174218263,33.2,212.23,212.2,0.71]
[1759174219035,33.2,212.23,212.19,4.71275743]
[1759174219262,33.2,212.23,212.2,0.71]
[1759174219464,33.2,212.23,212.21,0.71]
[1759174219649,33.2,212.23,212.21,5.42230173]
[1759174221668,33.2,212.23,212.2,4.71253534]
[1759174221852,33.9,212.23,212.2,4.71253534]
[1759174222347,26.0,212.2,212.18,0.3187]
[1759174222551,33.2,212.19,212.18,0.3187]
[1759174222756,33.2,212.19,212.18,5.03160394]
[1759174222954,26.14216157,212.24,212.18,5.73160394]
[1759174223270,26.0,212.2,212.18,5.73160394]
[1759174223565,26.0,212.2,212.18,0.3187]
[1759174223566,0.7,212.19,212.18,0.3187]
[1759174223860,5.41275743,212.19,212.18,0.3187]
[1759174224067,7.74518967,212.19,212.18,0.3187]
[1759174224264,8.9836514,212.19,212.18,0.3187]
[1759174225037,59.9,212.19,212.18,0.3187]
[1759174225455,26.7,212.19,212.18,0.3187]
[1759174225659,33.2,212.19,212.18,0.3187]
[1759174226456,26.0,212.16,212.15,4.73214982]
[1759174226768,26.0,212.16,212.15,5.43214982]
[1759174227451,33.2,212.2,212.15,5.43214982]
[1759174227659,25.37294422,212.28,212.16,0.7]
[1759174227967,26.0,212.24,212.16,0.7]
[1759174228270,33.2,212.23,212.16,0.7]
[1759174229158,33.2,212.23,212.17,4.71320167]
[1759174229351,33.9,212.23,212.17,4.71320167]
[1759174229770,38.61189604,212.23,212.17,4.71320167]
[1759174230566,26.0,212.2,212.16,4.71338214]
[1759174230945,33.9,212.19,212.15,4.7323143]
[1759174231545,0.7,212.18,212.15,0.0187]
[1759174231956,37.91278638,212.19,212.15,0.0187]
[1759174232168,0.7,212.17,212.15,0.0187]
[1759174232350,33.2,212.16,212.15,0.0187]
[1759174234355,26.0,212.18,212.15,0.0187]
[1759174234677,26.0,212.18,212.16,0.7]
[1759174234867,23.54832533,212.33,212.17,0.7]
[1759174235071,164.8,212.22,212.15,0.0187]
[1759174235264,164.8,212.22,212.19,4.71275743]
[1759174235667,164.8,212.22,212.19,5.41275743]
[1759174235968,165.5,212.22,212.19,4.71275743]
[1759174236174,164.8,212.22,212.19,4.71275743]
[1759174236480,164.8,212.22,212.18,4.71295132]
[1759174237054,165.5,212.22,212.18,4.71295132]
[1759174237660,164.8,212.22,212.18,0.7]
[1759174238673,164.8,212.22,212.17,16.49620586]
[1759174238863,164.8,212.22,212.19,0.7]
[1759174239259,164.8,212.22,212.17,16.49620586]
[1759174239450,164.8,212.22,212.18,0.7]
[1759174239654,164.8,212.22,212.19,4.71275743]
[1759174240076,132.3,212.22,212.19,4.71275743]
[1759174240283,33.2,212.21,212.19,4.71275743]
[1759174240953,131.6,212.22,212.2,0.7]
[1759174241152,164.8,212.22,212.19,4.71275743]
[1759174241375,164.8,212.22,212.19,5.41275743]